[Event "EYCC Open-U14 2019"]
[Site "Bratislava"]
[Date "2019.08.08"]
[Round "7.35"]
[White "Popov, Maksim M."]
[Black "Nareks, Matic"]
[Result "1/2-1/2"]
[ECO "B08"]
[WhiteElo "2152"]
[BlackElo "1937"]
[Annotator "NA"]
[PlyCount "198"]
[EventDate "2019.08.02"]
[EventType "swiss"]
[EventCountry "SVK"]
[SourceTitle "playchess.com"]
[Source "ChessBase"]
[SourceQuality "1"]
[TimeControl "40/5400+30:1800+30"]

1. e4 {[%emt 0:00:00]} g6 {[%emt 0:00:43]} 2. d4 {[%emt 0:00:36]} d6 {[%emt 0:00:08]} 3. Nf3 {[%emt 0:00:55]} Nf6 {[%emt 0:00:55]} 4. Nc3 {[%emt 0:01:40]} Bg7 {[%emt 0:00:29]} 5. Bc4 {[%emt 0:02:18]} c6 {[%emt 0:02:33]} 6. a4 {[%emt 0:02:46]} O-O {[%emt 0:05:10]} 7. O-O {[%emt 0:00:23]} Qc7 {[%emt 0:02:33]} 8. h3 {[%emt 0:01:04]} Nbd7 {[%emt 0:04:08]} 9. Qe2 {[%emt 0:01:41]} e5 {[%emt 0:01:15]} 10. dxe5 {[%emt 0:00:53]} dxe5 {[%emt 0:02:35]} 11. Be3 {[%emt 0:02:25]} b6 {[%emt 0:15:08]} 12. Nd2 {[%emt 0:25:10]} Nh5 {[%emt 0:09:33]} 13. Rfe1 {[%emt 0:04:58]} Re8 {[%emt 0:02:43]} 14. Nf3 {[%emt 0:08:16]} Nf8 {[%emt 0:03:10]} 15. Ng5 {[%emt 0:00:45]} Ne6 {[%emt 0:04:47]} 16. Bxe6 {[%emt 0:00:11]} Bxe6 {[%emt 0:01:05]} 17. Nxe6 {[%emt 0:00:10]} Rxe6 {[%emt 0:01:28]} 18. g3 {[%emt 0:01:20]} Bf6 {[%emt 0:07:36]} 19. Red1 {[%emt 0:03:20]} Ng7 {[%emt 0:00:44]} 20. Qc4 {[%emt 0:00:56]} Re7 {[%emt 0:01:17]} 21. b4 {[%emt 0:03:34]} Qc8 {[%emt 0:04:01]} 22. Rd6 {[%emt 0:02:06]} Re6 {[%emt 0:01:20]} 23. Rad1 {[%emt 0:00:28]} Be7 {[%emt 0:00:55]} 24. Rd7 {[%emt 0:00:34]} Ne8 {[%emt 0:00:36]} 25. R7d2 {[%emt 0:04:25]} Rd6 {[%emt 0:00:52]} 26. Kg2 {[%emt 0:00:59]} Rxd2 {[%emt 0:01:05]} 27. Rxd2 {[%emt 0:00:07]} Nd6 {[%emt 0:00:29]} 28. Qb3 {[%emt 0:00:38]} Qe6 {[%emt 0:01:28]} 29. Qxe6 {[%emt 0:00:39]} fxe6 {[%emt 0:00:08]} 30. b5 {[%emt 0:08:10]} cxb5 {[%emt 0:03:29]} 31. Nxb5 {[%emt 0:00:25]} Nxb5 {[%emt 0:01:50]} 32. axb5 {[%emt 0:00:07]} Rd8 {[%emt 0:00:29]} 33. Rxd8+ {[%emt 0:02:07]} Bxd8 {[%emt 0:00:01]} 34. f4 {[%emt 0:01:01]} Bc7 {[%emt 0:00:26]} 35. Kf3 {[%emt 0:01:06]} Kf7 {[%emt 0:00:42]} 36. c4 {[%emt 0:00:27]} Kf6 {[%emt 0:01:34]} 37. c5 {[%emt 0:02:30]} exf4 {[%emt 0:01:02]} 38. gxf4 {[%emt 0:00:18]} bxc5 {[%emt 0:00:40]} 39. Bxc5 {[%emt 0:00:05]} Bb6 {[%emt 0:00:18]} 40. Bd6 {[%emt 0:00:00]} Bd4 {[%emt 0:00:00]} 41. h4 {[%emt 0:01:30]} Kf7 {[%emt 0:06:59]} 42. Bb8 {[%emt 0:00:59]} Ke7 {[%emt 0:00:44]} 43. Kg4 {[%emt 0:01:37]} Kf7 {[%emt 0:01:31]} 44. Kg5 {[%emt 0:02:55]} Kg7 {[%emt 0:04:00]} 45. h5 {[%emt 0:00:44]} Bf6+ {[%emt 0:02:09]} 46. Kg4 {[%emt 0:00:05]} Bd4 {[%emt 0:00:09]} 47. Bc7 {[%emt 0:00:32]} Bc3 {[%emt 0:00:56]} 48. Bd6 {[%emt 0:00:52]} Bd4 {[%emt 0:00:21]} 49. Bb8 {[%emt 0:00:14]} Kf6 {[%emt 0:00:36]} 50. Bc7 {[%emt 0:00:08]} Kg7 {[%emt 0:00:26]} 51. Ba5 {[%emt 0:01:17]} Kf6 {[%emt 0:00:23]} 52. Bd8+ {[%emt 0:00:09]} Kg7 {[%emt 0:00:15]} 53. Kg5 {[%emt 0:00:13]} Bc3 {[%emt 0:00:56]} 54. Be7 {[%emt 0:00:43]} Bd4 {[%emt 0:00:28]} 55. Kg4 {[%emt 0:00:23]} Kf7 {[%emt 0:00:57]} 56. Bh4 {[%emt 0:00:07]} Bc5 {[%emt 0:01:21]} 57. Be1 {[%emt 0:00:44]} Bd4 {[%emt 0:00:20]} 58. Bd2 {[%emt 0:00:08]} Kf6 {[%emt 0:00:32]} 59. Ba5 {[%emt 0:00:28]} Kg7 {[%emt 0:00:46]} 60. Bd8 {[%emt 0:00:07]} Bc3 {[%emt 0:01:36]} 61. Kg5 {[%emt 0:00:15]} Bb2 {[%emt 0:01:06]} 62. Be7 {[%emt 0:03:29]} Bd4 {[%emt 0:00:27]} 63. Bb4 {[%emt 0:00:34]} Bf6+ {[%emt 0:00:23]} 64. Kg4 {[%emt 0:00:06]} Bd4 {[%emt 0:00:10]} 65. Bd2 {[%emt 0:00:08]} Kf6 {[%emt 0:00:15]} 66. Bc1 {[%emt 0:00:17]} Kg7 {[%emt 0:01:25]} 67. Ba3 {[%emt 0:01:06]} Kf6 {[%emt 0:00:21]} 68. Bf8 {[%emt 0:00:24]} Kf7 {[%emt 0:00:36]} 69. Bb4 {[%emt 0:02:09]} Kf6 {[%emt 0:00:20]} 70. Bd2 {[%emt 0:00:30]} Kg7 {[%emt 0:00:16]} 71. Bb4 {[%emt 0:01:41]} Kf6 {[%emt 0:00:10]} 72. Ba5 {[%emt 0:00:08]} Bb2 {[%emt 0:00:39]} 73. Bd8+ {[%emt 0:00:14]} Kg7 {[%emt 0:00:09]} 74. f5 {[%emt 0:00:15]} exf5+ {[%emt 0:01:11]} 75. exf5 {[%emt 0:00:04]} gxh5+ {[%emt 0:00:26]} 76. Kxh5 {[%emt 0:00:05]} Bf6 {[%emt 0:00:29]} 77. Bc7 {[%emt 0:00:20]} Bd4 {[%emt 0:01:10]} 78. Kg4 {[%emt 0:00:26]} Kf6 {[%emt 0:00:52]} 79. Bd8+ {[%emt 0:00:06]} Kf7 {[%emt 0:00:22]} 80. Bh4 {[%emt 0:00:26]} Bb6 {[%emt 0:00:53]} 81. Kf4 {[%emt 0:00:18]} Bc7+ {[%emt 0:00:37]} 82. Ke4 {[%emt 0:00:13]} Bb6 {[%emt 0:00:27]} 83. Kd5 {[%emt 0:00:16]} Be3 {[%emt 0:00:36]} 84. Ke4 {[%emt 0:00:32]} Bb6 {[%emt 0:00:08]} 85. Bg5 {[%emt 0:00:05]} Bc5 {[%emt 0:01:02]} 86. Bh4 {[%emt 0:00:49]} Bb6 {[%emt 0:00:16]} 87. Kd5 {[%emt 0:00:05]} Be3 {[%emt 0:00:11]} 88. Kc6 {[%emt 0:00:06]} Bd4 {[%emt 0:00:51]} 89. Kb7 {[%emt 0:00:14]} h5 {[%emt 0:00:27]} 90. Kc6 {[%emt 0:00:35]} Bf6 {[%emt 0:01:44]} 91. Bf2 {[%emt 0:00:34]} h4 {[%emt 0:00:12]} 92. Kd5 {[%emt 0:00:05]} h3 {[%emt 0:00:41]} 93. Bg3 {[%emt 0:00:06]} Bh4 {[%emt 0:00:28]} 94. Bh2 {[%emt 0:00:05]} Kf6 {[%emt 0:00:56]} 95. Ke4 {[%emt 0:00:08]} Bf2 {[%emt 0:00:23]} 96. Kf3 {[%emt 0:01:41]} Bb6 {[%emt 0:00:31]} 97. Kg4 {[%emt 0:00:06]} Be3 {[%emt 0:00:44]} 98. Bc7 {[%emt 0:03:53]} Bb6 {[%emt 0:00:28]} 99. Bf4 {[%emt 0:00:34]} Be3 {[%emt 0:00:24]} 1/2-1/2

[Event "EYCC Open-U14 2019"]
[Site "Bratislava"]
[Date "2019.08.08"]
[Round "7.36"]
[White "Cappelletto, Joshuaede"]
[Black "Tabuenca Mendataurigoitia, Pedro"]
[Result "1-0"]
[ECO "B40"]
[WhiteElo "2138"]
[BlackElo "1839"]
[Annotator "NA"]
[PlyCount "73"]
[EventDate "2019.08.02"]
[EventType "swiss"]
[EventCountry "SVK"]
[SourceTitle "playchess.com"]
[Source "ChessBase"]
[SourceQuality "1"]
[TimeControl "40/5400+30:1800+30"]

1. e4 {[%emt 0:00:00]} c5 {[%emt 0:00:00]} 2. Nf3 {[%emt 0:00:00]} e6 {[%emt 0:00:00]} 3. d4 {[%emt 0:00:00]} cxd4 {[%emt 0:00:00]} 4. Nxd4 {[%emt 0:00:00]} Qb6 {[%emt 0:00:00]} 5. Nb3 {[%emt 0:00:40]} Qc7 {[%emt 0:00:10]} 6. Bd3 {[%emt 0:00:16]} a6 {[%emt 0:00:46]} 7. O-O {[%emt 0:00:11]} Nf6 {[%emt 0:00:13]} 8. Nc3 {[%emt 0:01:59]} Be7 {[%emt 0:01:17]} 9. Qe2 {[%emt 0:00:27]} d6 {[%emt 0:00:48]} 10. Kh1 {[%emt 0:00:24]} b5 {[%emt 0:01:41]} 11. a3 {[%emt 0:00:41]} Bb7 {[%emt 0:01:45]} 12. f4 {[%emt 0:01:50]} Nbd7 {[%emt 0:04:00]} 13. Bd2 {[%emt 0:00:32]} e5 {[%emt 0:07:00]} 14. f5 {[%emt 0:05:27]} h5 {[%emt 0:10:56]} 15. Rad1 {[%emt 0:06:01]} Nc5 {[%emt 0:19:55]} 16. Bg5 {[%emt 0:04:40]} h4 {[%emt 0:14:17]} 17. Bxf6 {[%emt 0:05:08]} gxf6 {[%emt 0:05:37]} 18. Rf3 {[%emt 0:03:11]} O-O-O {[%emt 0:07:40]} 19. Nd5 {[%emt 0:07:27]} Bxd5 {[%emt 0:00:17]} 20. exd5 {[%emt 0:00:10]} Nxb3 {[%emt 0:03:49]} 21. cxb3 {[%emt 0:00:12]} Kb8 {[%emt 0:01:16]} 22. a4 {[%emt 0:00:19]} bxa4 {[%emt 0:01:24]} 23. Bxa6 {[%emt 0:01:04]} Qa5 {[%emt 0:04:52]} 24. Ra1 {[%emt 0:02:22]} Qxd5 {[%emt 0:01:21]} 25. Rxa4 {[%emt 0:00:56]} Rd7 {[%emt 0:01:42]} 26. Rb4+ {[%emt 0:03:57]} Ka8 {[%emt 0:01:05]} 27. Bd3 {[%emt 0:02:42]} Qc6 {[%emt 0:03:16]} 28. Bb5 {[%emt 0:00:36]} Qb6 {[%emt 0:01:20]} 29. Rc3 {[%emt 0:02:48]} Ra7 {[%emt 0:00:22]} 30. Ra4 {[%emt 0:18:44]} Rxa4 {[%emt 0:01:45]} 31. bxa4 {[%emt 0:00:13]} Rb8 {[%emt 0:03:23]} 32. Qe4+ {[%emt 0:01:39]} Rb7 {[%emt 0:01:33]} 33. Bc6 {[%emt 0:03:37]} Qxb2 {[%emt 0:00:25]} 34. Bxb7+ {[%emt 0:00:07]} Kb8 {[%emt 0:01:06]} 35. Rc8+ {[%emt 0:00:24]} Ka7 {[%emt 0:00:01]} 36. Ra8+ {[%emt 0:00:08]} Kb6 {[%emt 0:00:00]} 37. Qc6# {[%emt 0:00:39]} 1-0

[Event "EYCC Open-U14 2019"]
[Site "Bratislava"]
[Date "2019.08.08"]
[Round "7.37"]
[White "Vanduyfhuys, Igor"]
[Black "Fardet, Elouan"]
[Result "0-1"]
[ECO "B59"]
[WhiteElo "1804"]
[BlackElo "2047"]
[Annotator "NA"]
[PlyCount "48"]
[EventDate "2019.08.02"]
[EventType "swiss"]
[EventCountry "SVK"]
[SourceTitle "playchess.com"]
[Source "ChessBase"]
[SourceQuality "1"]
[TimeControl "40/5400+30:1800+30"]

1. e4 {[%emt 0:00:00]} c5 {[%emt 0:00:00]} 2. Nf3 {[%emt 0:00:00]} d6 {[%emt 0:00:00]} 3. d4 {[%emt 0:00:00]} cxd4 {[%emt 0:00:00]} 4. Nxd4 {[%emt 0:00:02]} Nf6 {[%emt 0:00:00]} 5. Nc3 {[%emt 0:00:45]} Nc6 {[%emt 0:00:00]} 6. Be2 {[%emt 0:01:33]} e5 {[%emt 0:01:20]} 7. Nb3 {[%emt 0:00:14]} Be7 {[%emt 0:00:28]} 8. O-O {[%emt 0:00:12]} O-O {[%emt 0:00:24]} 9. f4 {[%emt 0:01:23]} exf4 {[%emt 0:03:53]} 10. Bxf4 {[%emt 0:00:27]} a6 {[%emt 0:02:59]} 11. Kh1 {[%emt 0:02:53]} b5 {[%emt 0:06:12]} 12. Bf3 {[%emt 0:04:50]} Ne5 {[%emt 0:05:18]} 13. Nd4 {[%emt 0:03:35]} Bb7 {[%emt 0:07:54]} 14. a3 {[%emt 0:03:23]} Re8 {[%emt 0:12:51]} 15. Nd5 {[%emt 0:07:32]} Nxd5 {[%emt 0:03:42]} 16. exd5 {[%emt 0:00:07]} Qb6 {[%emt 0:04:14]} 17. c3 {[%emt 0:03:46]} Rac8 {[%emt 0:07:49]} 18. Be4 {[%emt 0:06:04]} Bf6 {[%emt 0:03:32]} 19. Be3 {[%emt 0:25:00]} Qd8 {[%emt 0:08:49]} 20. a4 {[%emt 0:02:43]} Nc4 {[%emt 0:02:20]} 21. Bxh7+ {[%emt 0:05:49]} Kxh7 {[%emt 0:00:31]} 22. Qh5+ {[%emt 0:00:38]} Kg8 {[%emt 0:00:04]} 23. Bg5 {[%emt 0:01:31]} Re5 {[%emt 0:08:51]} 24. Rxf6 {[%emt 0:02:21]} Qxf6 {[%emt 0:01:50]} 0-1

[Event "EYCC Open-U14 2019"]
[Site "Bratislava"]
[Date "2019.08.08"]
[Round "7.38"]
[White "Creanga, Robert-Ionut"]
[Black "Protassov, Vlad"]
[Result "1-0"]
[ECO "D35"]
[WhiteElo "2024"]
[BlackElo "1898"]
[Annotator "NA"]
[PlyCount "57"]
[EventDate "2019.08.02"]
[EventType "swiss"]
[EventCountry "SVK"]
[SourceTitle "playchess.com"]
[Source "ChessBase"]
[SourceQuality "1"]
[TimeControl "40/5400+30:1800+30"]

1. d4 {[%emt 0:00:00]} Nf6 {[%emt 0:00:00]} 2. c4 {[%emt 0:00:00]} e6 {[%emt 0:00:00]} 3. Nc3 {[%emt 0:00:00]} d5 {[%emt 0:00:59]} 4. cxd5 {[%emt 0:00:00]} exd5 {[%emt 0:00:10]} 5. Bg5 {[%emt 0:00:03]} Be7 {[%emt 0:02:09]} 6. e3 {[%emt 0:00:23]} c6 {[%emt 0:00:20]} 7. Bd3 {[%emt 0:00:11]} O-O {[%emt 0:01:29]} 8. Qc2 {[%emt 0:00:35]} Nbd7 {[%emt 0:01:37]} 9. Nf3 {[%emt 0:00:24]} h6 {[%emt 0:03:10]} 10. Bf4 {[%emt 0:05:49]} Nh5 {[%emt 0:01:49]} 11. Be5 {[%emt 0:01:52]} Nhf6 {[%emt 0:05:51]} 12. O-O {[%emt 0:06:25]} Nxe5 {[%emt 0:03:54]} 13. Nxe5 {[%emt 0:02:41]} Ng4 {[%emt 0:03:56]} 14. Nf3 {[%emt 0:02:43]} Bd6 {[%emt 0:00:57]} 15. h3 {[%emt 0:01:32]} Nf6 {[%emt 0:02:08]} 16. Ne5 {[%emt 0:01:24]} Bxe5 {[%emt 0:12:04]} 17. dxe5 {[%emt 0:00:50]} Nd7 {[%emt 0:00:02]} 18. f4 {[%emt 0:01:36]} Qb6 {[%emt 0:00:19]} 19. Rf3 {[%emt 0:10:32]} Nc5 {[%emt 0:00:53]} 20. Bf1 {[%emt 0:02:33]} d4 {[%emt 0:17:39]} 21. Ne4 {[%emt 0:07:53]} Nxe4 {[%emt 0:04:34]} 22. Qxe4 {[%emt 0:00:26]} Qxb2 {[%emt 0:01:16]} 23. Rb1 {[%emt 0:00:53]} Qxa2 {[%emt 0:01:33]} 24. Bd3 {[%emt 0:06:15]} g6 {[%emt 0:00:28]} 25. Rg3 {[%emt 0:05:21]} Kh8 {[%emt 0:05:23]} 26. Qxd4 {[%emt 0:02:42]} Qd5 {[%emt 0:04:13]} 27. Qc3 {[%emt 0:01:45]} Be6 {[%emt 0:01:50]} 28. e4 {[%emt 0:01:58]} Qd8 {[%emt 0:04:28]} 29. f5 {[%emt 0:00:26]} 1-0

[Event "EYCC Open-U14 2019"]
[Site "Bratislava"]
[Date "2019.08.08"]
[Round "7.39"]
[White "Briem, Benedikt"]
[Black "Paduano, Claudio"]
[Result "1-0"]
[ECO "D35"]
[WhiteElo "1901"]
[BlackElo "2037"]
[Annotator "NA"]
[PlyCount "119"]
[EventDate "2019.08.02"]
[EventType "swiss"]
[EventCountry "SVK"]
[SourceTitle "playchess.com"]
[Source "ChessBase"]
[SourceQuality "1"]
[TimeControl "40/5400+30:1800+30"]

1. d4 {[%emt 0:00:00]} Nf6 {[%emt 0:01:42]} 2. c4 {[%emt 0:00:00]} e6 {[%emt 0:00:25]} 3. Nc3 {[%emt 0:00:00]} d5 {[%emt 0:00:32]} 4. cxd5 {[%emt 0:00:00]} Nxd5 {[%emt 0:01:03]} 5. e4 {[%emt 0:00:11]} Nxc3 {[%emt 0:00:19]} 6. bxc3 {[%emt 0:00:02]} c5 {[%emt 0:02:01]} 7. Nf3 {[%emt 0:00:06]} cxd4 {[%emt 0:02:32]} 8. cxd4 {[%emt 0:00:06]} Bb4+ {[%emt 0:03:56]} 9. Bd2 {[%emt 0:00:08]} Bxd2+ {[%emt 0:01:18]} 10. Qxd2 {[%emt 0:00:01]} O-O {[%emt 0:03:06]} 11. Bc4 {[%emt 0:00:29]} Nc6 {[%emt 0:29:18]} 12. O-O {[%emt 0:00:33]} b6 {[%emt 0:10:41]} 13. Rad1 {[%emt 0:01:17]} Na5 {[%emt 0:14:44]} 14. Bd3 {[%emt 0:00:37]} Bb7 {[%emt 0:03:59]} 15. Rfe1 {[%emt 0:03:06]} Rc8 {[%emt 0:06:22]} 16. d5 {[%emt 0:05:10]} exd5 {[%emt 0:08:33]} 17. e5 {[%emt 0:00:31]} Qe7 {[%emt 0:07:04]} 18. Qf4 {[%emt 0:04:01]} h6 {[%emt 0:00:52]} 19. h4 {[%emt 0:06:54]} Nc6 {[%emt 0:00:32]} 20. h5 {[%emt 0:06:02]} Nb4 {[%emt 0:00:29]} 21. Bb1 {[%emt 0:04:52]} Rc4 {[%emt 0:00:31]} 22. Qf5 {[%emt 0:06:31]} g6 {[%emt 0:00:30]} 23. hxg6 {[%emt 0:00:55]} fxg6 {[%emt 0:00:29]} 24. Qxg6+ {[%emt 0:00:50]} Qg7 {[%emt 0:00:22]} 25. Qxg7+ {[%emt 0:03:05]} Kxg7 {[%emt 0:00:01]} 26. Nd4 {[%emt 0:00:48]} Bc8 {[%emt 0:01:08]} 27. e6 {[%emt 0:02:11]} Kf6 {[%emt 0:00:28]} 28. Re3 {[%emt 0:03:32]} Nc6 {[%emt 0:00:31]} 29. Rf3+ {[%emt 0:01:05]} Ke7 {[%emt 0:00:30]} 30. Nf5+ {[%emt 0:01:43]} Rxf5 {[%emt 0:00:30]} 31. Rxf5 {[%emt 0:05:36]} Bxe6 32. Rh5 {[%emt 0:03:23]} Nd4 {[%emt 0:01:00]} 33. Re1 {[%emt 0:00:49]} Kd6 {[%emt 0:00:30]} 34. Rxh6 {[%emt 0:00:31]} Kc5 {[%emt 0:00:30]} 35. Rh7 {[%emt 0:02:46]} a5 {[%emt 0:00:31]} 36. Bd3 {[%emt 0:01:27]} Ra4 {[%emt 0:00:29]} 37. Bb1 {[%emt 0:07:07]} b5 {[%emt 0:00:28]} 38. Rc7+ {[%emt 0:01:19]} Kd6 {[%emt 0:00:31]} 39. Ra7 {[%emt 0:00:54]} Bd7 {[%emt 0:00:32]} 40. f3 {[%emt 0:00:00]} b4 {[%emt 0:00:00]} 41. Ra8 {[%emt 0:20:42]} Bf5 {[%emt 0:25:38]} 42. Bxf5 {[%emt 0:01:59]} Nxf5 {[%emt 0:00:14]} 43. Rd8+ {[%emt 0:00:31]} Kc5 {[%emt 0:05:48]} 44. Rc1+ {[%emt 0:02:13]} Kd4 45. Rd1+ {[%emt 0:00:50]} Kc3 {[%emt 0:01:18]} 46. R8xd5 {[%emt 0:01:56]} Rxa2 {[%emt 0:00:30]} 47. Rc5+ {[%emt 0:02:03]} Kb3 {[%emt 0:00:30]} 48. Rd3+ {[%emt 0:01:48]} Ka4 {[%emt 0:00:31]} 49. Rdd5 {[%emt 0:00:37]} Kb3 {[%emt 0:00:30]} 50. Rxf5 {[%emt 0:07:55]} a4 {[%emt 0:00:29]} 51. Rf4 {[%emt 0:00:17]} a3 {[%emt 0:00:32]} 52. Rb5 {[%emt 0:00:39]} Ra1+ {[%emt 0:00:29]} 53. Kh2 {[%emt 0:00:19]} a2 {[%emt 0:00:30]} 54. Rbxb4+ {[%emt 0:00:06]} Kc3 {[%emt 0:00:30]} 55. Ra4 {[%emt 0:00:10]} Kb2 {[%emt 0:00:29]} 56. Rfe4 {[%emt 0:00:51]} Kb3 {[%emt 0:00:32]} 57. Reb4+ {[%emt 0:01:42]} Kc3 {[%emt 0:00:28]} 58. Rb5 {[%emt 0:00:18]} Rb1 {[%emt 0:00:31]} 59. Rba5 {[%emt 0:00:12]} Rb8 {[%emt 0:00:30]} 60. Rxa2 {[%emt 0:00:16]} 1-0

[Event "EYCC Open-U14 2019"]
[Site "Bratislava"]
[Date "2019.08.08"]
[Round "7.40"]
[White "Djurovic, Peko"]
[Black "Grahn, Vidar"]
[Result "0-1"]
[ECO "B34"]
[WhiteElo "2048"]
[BlackElo "1980"]
[Annotator "NA"]
[PlyCount "72"]
[EventDate "2019.08.02"]
[EventType "swiss"]
[EventCountry "SVK"]
[SourceTitle "playchess.com"]
[Source "ChessBase"]
[SourceQuality "1"]
[TimeControl "40/5400+30:1800+30"]

1. e4 {[%emt 0:00:00]} c5 {[%emt 0:00:00]} 2. Nf3 {[%emt 0:00:00]} Nc6 {[%emt 0:00:00]} 3. d4 {[%emt 0:01:26]} cxd4 {[%emt 0:00:00]} 4. Nxd4 {[%emt 0:00:04]} g6 {[%emt 0:00:00]} 5. Nc3 {[%emt 0:00:18]} Bg7 {[%emt 0:00:02]} 6. Be3 {[%emt 0:00:25]} Nf6 {[%emt 0:00:06]} 7. f3 {[%emt 0:00:43]} O-O {[%emt 0:00:07]} 8. Qd2 {[%emt 0:00:05]} d5 {[%emt 0:00:07]} 9. O-O-O {[%emt 0:03:10]} dxe4 {[%emt 0:21:09]} 10. Qe1 {[%emt 0:11:08]} Qa5 {[%emt 0:07:28]} 11. fxe4 {[%emt 0:02:55]} Ng4 {[%emt 0:07:40]} 12. Nxc6 {[%emt 0:01:06]} bxc6 {[%emt 0:02:41]} 13. Bd4 {[%emt 0:00:14]} Be6 {[%emt 0:11:01]} 14. Bxg7 {[%emt 0:03:46]} Kxg7 {[%emt 0:00:14]} 15. Kb1 {[%emt 0:01:38]} Rab8 {[%emt 0:07:47]} 16. h4 {[%emt 0:05:09]} h5 {[%emt 0:03:29]} 17. Bd3 {[%emt 0:02:51]} Rb7 {[%emt 0:04:00]} 18. b3 {[%emt 0:00:35]} Rfb8 {[%emt 0:01:45]} 19. Rf1 {[%emt 0:03:50]} c5 {[%emt 0:01:24]} 20. Nd5 {[%emt 0:00:52]} Qxe1 {[%emt 0:03:32]} 21. Rdxe1 {[%emt 0:00:18]} Ne5 {[%emt 0:02:17]} 22. Ba6 {[%emt 0:00:16]} Rd7 {[%emt 0:00:13]} 23. c4 {[%emt 0:00:07]} Rd6 {[%emt 0:01:51]} 24. Bb5 {[%emt 0:00:02]} a6 {[%emt 0:00:37]} 25. Ba4 {[%emt 0:00:59]} Nxc4 {[%emt 0:00:25]} 26. Kc2 {[%emt 0:00:52]} Nb6 {[%emt 0:01:38]} 27. Nxe7 {[%emt 0:03:35]} Nxa4 {[%emt 0:02:12]} 28. bxa4 {[%emt 0:00:13]} Rb7 {[%emt 0:02:03]} 29. Nd5 {[%emt 0:00:50]} Bxd5 {[%emt 0:00:11]} 30. exd5 {[%emt 0:00:01]} Rxd5 {[%emt 0:00:13]} 31. Re4 {[%emt 0:01:17]} Rbd7 {[%emt 0:00:48]} 32. Kb3 {[%emt 0:03:21]} Rd2 {[%emt 0:03:46]} 33. g4 {[%emt 0:00:45]} Rb7+ {[%emt 0:01:14]} 34. Kc3 {[%emt 0:00:29]} Rd4 {[%emt 0:01:58]} 35. Rff4 {[%emt 0:01:38]} Rbb4 {[%emt 0:00:49]} 36. Rxd4 {[%emt 0:04:00]} Rxd4 {[%emt 0:00:07]} 0-1

[Event "EYCC Open-U14 2019"]
[Site "Bratislava"]
[Date "2019.08.08"]
[Round "7.41"]
[White "Falkevall, Axel"]
[Black "Pegno, Mattia"]
[Result "0-1"]
[ECO "B22"]
[WhiteElo "2067"]
[BlackElo "1821"]
[Annotator "NA"]
[PlyCount "62"]
[EventDate "2019.08.02"]
[EventType "swiss"]
[EventCountry "SVK"]
[SourceTitle "playchess.com"]
[Source "ChessBase"]
[SourceQuality "1"]
[TimeControl "40/5400+30:1800+30"]

1. e4 {[%emt 0:00:00]} c5 {[%emt 0:00:00]} 2. c3 {[%emt 0:00:00]} Nf6 {[%emt 0:00:00]} 3. e5 {[%emt 0:00:00]} Nd5 {[%emt 0:00:00]} 4. d4 {[%emt 0:00:00]} cxd4 {[%emt 0:00:25]} 5. Nf3 {[%emt 0:00:15]} d6 {[%emt 0:00:53]} 6. cxd4 {[%emt 0:00:08]} e6 {[%emt 0:00:35]} 7. a3 {[%emt 0:01:21]} Nc6 {[%emt 0:03:23]} 8. Bd3 {[%emt 0:00:47]} dxe5 {[%emt 0:04:06]} 9. dxe5 {[%emt 0:01:00]} Be7 {[%emt 0:01:23]} 10. O-O {[%emt 0:01:24]} O-O {[%emt 0:01:52]} 11. Qe2 {[%emt 0:04:14]} Qc7 {[%emt 0:16:31]} 12. Qe4 {[%emt 0:07:29]} f5 {[%emt 0:06:17]} 13. exf6 {[%emt 0:04:02]} Nxf6 {[%emt 0:00:31]} 14. Qc4 {[%emt 0:12:37]} Kh8 {[%emt 0:18:05]} 15. Nc3 {[%emt 0:05:19]} Bd7 {[%emt 0:04:07]} 16. Bg5 {[%emt 0:06:36]} Rac8 {[%emt 0:05:39]} 17. Qh4 {[%emt 0:10:03]} h6 {[%emt 0:05:21]} 18. Rfe1 {[%emt 0:09:15]} Kg8 {[%emt 0:08:42]} 19. Bxh6 {[%emt 0:15:02]} gxh6 {[%emt 0:05:03]} 20. Qxh6 {[%emt 0:00:46]} Rf7 {[%emt 0:04:55]} 21. Nb5 {[%emt 0:10:56]} Qb6 {[%emt 0:03:23]} 22. h3 {[%emt 0:02:12]} Rcf8 {[%emt 0:02:52]} 23. Rac1 {[%emt 0:01:03]} a6 {[%emt 0:01:48]} 24. Rc4 {[%emt 0:00:59]} Rg7 {[%emt 0:04:48]} 25. Rh4 {[%emt 0:02:21]} Kf7 {[%emt 0:00:56]} 26. Ng5+ {[%emt 0:00:55]} Rxg5 {[%emt 0:00:19]} 27. Qxg5 {[%emt 0:00:30]} Ke8 {[%emt 0:00:47]} 28. Qg6+ {[%emt 0:01:33]} Kd8 {[%emt 0:00:26]} 29. Nc3 {[%emt 0:01:09]} Ng4 {[%emt 0:00:51]} 30. Rxg4 {[%emt 0:00:51]} Qxf2+ {[%emt 0:00:11]} 31. Kh2 {[%emt 0:00:13]} Bd6+ {[%emt 0:00:19]} 0-1

[Event "EYCC Open-U14 2019"]
[Site "Bratislava"]
[Date "2019.08.08"]
[Round "7.42"]
[White "Maldonado Mena, German"]
[Black "Brnusak, Tomas"]
[Result "1/2-1/2"]
[ECO "E71"]
[WhiteElo "1822"]
[BlackElo "2032"]
[Annotator "NA"]
[PlyCount "77"]
[EventDate "2019.08.02"]
[EventType "swiss"]
[EventCountry "SVK"]
[SourceTitle "playchess.com"]
[Source "ChessBase"]
[SourceQuality "1"]
[TimeControl "40/5400+30:1800+30"]

1. d4 {[%emt 0:00:03]} Nf6 {[%emt 0:00:00]} 2. c4 {[%emt 0:00:46]} g6 {[%emt 0:00:33]} 3. Nc3 {[%emt 0:00:51]} Bg7 {[%emt 0:00:10]} 4. e4 {[%emt 0:00:59]} d6 {[%emt 0:02:45]} 5. h3 {[%emt 0:02:52]} O-O {[%emt 0:01:07]} 6. Be3 {[%emt 0:01:17]} c6 {[%emt 0:00:49]} 7. g4 {[%emt 0:01:38]} Na6 {[%emt 0:01:13]} 8. Nge2 {[%emt 0:12:32]} e5 {[%emt 0:02:35]} 9. d5 {[%emt 0:00:30]} cxd5 {[%emt 0:01:06]} 10. cxd5 {[%emt 0:00:35]} Qa5 {[%emt 0:02:24]} 11. Ng3 {[%emt 0:01:04]} Nc5 {[%emt 0:02:26]} 12. f3 {[%emt 0:03:16]} a6 {[%emt 0:06:44]} 13. Rb1 {[%emt 0:01:56]} Qd8 {[%emt 0:04:31]} 14. b4 {[%emt 0:04:46]} Ncd7 {[%emt 0:01:19]} 15. h4 {[%emt 0:03:28]} b5 {[%emt 0:08:05]} 16. Qd2 {[%emt 0:02:11]} Re8 {[%emt 0:03:18]} 17. h5 {[%emt 0:02:33]} Nf8 {[%emt 0:02:43]} 18. a4 {[%emt 0:18:20]} bxa4 {[%emt 0:03:01]} 19. Nxa4 {[%emt 0:02:31]} Rb8 {[%emt 0:00:31]} 20. Qf2 {[%emt 0:01:39]} Bd7 {[%emt 0:05:11]} 21. Nc3 {[%emt 0:12:44]} Qc7 {[%emt 0:04:14]} 22. Rc1 {[%emt 0:01:12]} Qb7 {[%emt 0:01:20]} 23. h6 {[%emt 0:00:22]} Bh8 {[%emt 0:01:56]} 24. g5 {[%emt 0:00:07]} Nh5 {[%emt 0:01:34]} 25. Nxh5 {[%emt 0:00:10]} gxh5 {[%emt 0:00:07]} 26. Qd2 {[%emt 0:07:50]} Ng6 {[%emt 0:04:01]} 27. Rxh5 {[%emt 0:01:42]} Rec8 {[%emt 0:02:06]} 28. Na2 {[%emt 0:01:19]} Rxc1+ {[%emt 0:00:30]} 29. Qxc1 {[%emt 0:00:02]} Rc8 {[%emt 0:00:20]} 30. Qd2 {[%emt 0:01:06]} Bb5 {[%emt 0:00:34]} 31. Rh1 {[%emt 0:06:01]} f6 {[%emt 0:03:40]} 32. Bh3 {[%emt 0:01:34]} Rc7 {[%emt 0:02:37]} 33. Be6+ {[%emt 0:01:01]} Kf8 {[%emt 0:00:13]} 34. gxf6 {[%emt 0:00:10]} Bxf6 {[%emt 0:01:51]} 35. Bg5 {[%emt 0:02:13]} Bxg5 {[%emt 0:08:11]} 36. Qxg5 {[%emt 0:00:01]} Qb6 {[%emt 0:01:09]} 37. Qd8+ {[%emt 0:02:33]} Be8 {[%emt 0:00:01]} 38. Qf6+ {[%emt 0:01:12]} Bf7 {[%emt 0:07:58]} 39. Qd8+ {[%emt 0:00:29]} 1/2-1/2